[Event "CCT Chessable Masters Playin Match 2025"]
[Site "Online"]
[Date "2025.02.17"]
[Round "1.1"]
[White "Sadhwani, Raunak"]
[Black "Grischuk, Alexander"]
[Result "1-0"]
[Annotator "TA"]
[ECO "D35"]
[WhiteElo "2666"]
[BlackElo "2687"]
[PlyCount "105"]
[EventDate "2025.02.13"]
[EventType "k.o."]
[EventCountry "NET"]
[SourceTitle "playchess.com"]
[Source "ChessBase"]
[SourceQuality "1"]
[TimeControl "600"]

{[%evp 13,105,4,17,15,22,11,16,0,4,-6,-3,-11,0,-4,0,-21,-4,-3,-18,-56,-52,-67,-69,-74,-72,-73,-38,-46,-50,-66,-52,-46,-27,-41,-31,-45,-21,-23,-29,-28,-18,-32,-26,-20,-23,-25,7,-9,0,0,0,0,0,0,0,0,0,0,0,0,0,0,17,0,0,0,0,0,0,0,0,0,0,0,0,0,0,0,30,11,11,0,0,0,18,0,18,0,28,28,595,554,528,499]} 1. c4 {[%emt 0:00:00]} e6 {[%emt 0:00:01]} 2. Nc3 {[%emt 0:00:01]} d5 {[%emt 0:00:01]} 3. d4 {[%emt 0:00:01]} Be7 {[%emt 0:00:01]} 4. cxd5 {[%emt 0:00:01]} exd5 {[%emt 0:00:00]} 5. Bf4 {[%emt 0:00:00]} Nf6 {[%emt 0:00:01]} 6. e3 {[%emt 0:00:01]} Bf5 {[%emt 0:00:01]} 7. Qb3 {[%emt 0:00:11]} Nc6 {[%emt 0:00:02][%cal Bb8c6,Bc6a5,Ba5c4][%mdl 32]} 8. Nf3 {[%emt 0:00:15] D35: Queen's Gambit Declined: Exchange Variation.} O-O {[%emt 0:00:55]} 9. Be2 $5 {[%emt 0:00:01][%mdl 4] Exploring less charted territory.} Na5 {[%emt 0:00:53]} 10. Qd1 {[%emt 0:00:01] The position is equal.} Nc4 {[%emt 0:00:30]} 11. Qc1 {[%emt 0:00:53]} Nd6 $146 {[%emt 0:00:10]} ({Predecessor:} 11... c6 12. O-O Nh5 13. Be5 f6 14. Bg3 Nxg3 15. hxg3 Nb6 16. Nh4 Bd7 17. Bd3 f5 {0-1 Dao,T (2524)-Wang,Y (2734) Asian Indoor Games 3rd fin rapid 2009 (1)}) 12. O-O {[%emt 0:00:05]} a5 {[%emt 0:00:11]} 13. Ne5 {[%emt 0:00:05]} c6 {[%emt 0:00:04]} 14. h3 {[%emt 0:00:10]} h6 {[%emt 0:00:07]} 15. a4 {[%emt 0:00:20]} Re8 {[%emt 0:00:05]} 16. f3 {[%emt 0:00:16]} Bh7 {[%emt 0:00:15]} 17. g4 {[%emt 0:00:05]} Nd7 {[%emt 0:00:24]} 18. b3 {[%emt 0:00:05]} Bg5 {[%emt 0:01:10]} 19. Qd2 {[%emt 0:00:05]} f6 {[%emt 0:00:09]} 20. Nxd7 {[%emt 0:00:12]} Qxd7 {[%emt 0:00:00]} 21. Bd3 {[%emt 0:00:00]} Bxd3 {[%emt 0:00:17]} 22. Qxd3 {[%emt 0:00:00]} Re6 {[%emt 0:00:01]} 23. Rae1 {[%emt 0:01:04]} Rae8 {[%emt 0:00:04] [#]} 24. Re2 {[%emt 0:00:00]} Bxf4 {[%emt 0:01:48]} 25. exf4 {[%emt 0:00:00]} Rxe2 {[%emt 0:00:00]} 26. Nxe2 {[%emt 0:00:00]} Qe7 {[%emt 0:00:06]} (26... b5 {simplifies} 27. axb5 cxb5 28. Ra1 a4) 27. Kf2 {[%emt 0:00:03] [#]} f5 $1 {[%emt 0:00:01]} 28. Ng3 {[%emt 0:00:33]} Qf6 {[%emt 0:00:33] ...fxg4 would now be deadly.} (28... g6 29. Qd2 Kf7 30. g5 b5) 29. Qd2 $1 {[%emt 0:00:50]} g6 {[%emt 0:00:07]} 30. Kg2 {[%emt 0:00:39]} (30. g5 {keeps more tension.} Qe7 31. h4 h5 32. Ne2) 30... Re6 {[%emt 0:00:39]} 31. Rf2 {[%emt 0:00:04]} h5 {[%emt 0:00:10]} 32. g5 {[%emt 0:00:25]} Qe7 {[%emt 0:00:07]} 33. Re2 {[%emt 0:00:01]} Rxe2+ {[%emt 0:00:02]} 34. Nxe2 $11 {[%emt 0:00:00][%mdl 4096] Endgame KQN-KQN} Nf7 {[%emt 0:00:07]} 35. Nc1 {[%emt 0:00:03]} b6 {[%emt 0:00:07]} 36. Nd3 {[%emt 0:00:07]} Kg7 {[%emt 0:00:01]} 37. Kf2 {[%emt 0:00:02]} Nd8 {[%emt 0:00:07]} 38. Qc3 {[%emt 0:00:06]} Qd6 {[%emt 0:00:02]} 39. Ne5 {[%emt 0:00:08]} Ne6 {[%emt 0:00:03]} 40. Qxc6 {[%emt 0:00:19]} (40. Nxc6 $2 Qc7 (40... Qxf4 41. Qe3 $17) (40... Nxf4 41. h4 $14) 41. h4 Kh7 $19 (41... Nxf4 42. Qe3 $11)) 40... Qxc6 {[%emt 0:00:01]} 41. Nxc6 {[%emt 0:00:00] And now Ke3 would win.} Nxf4 {[%emt 0:00:00] KN-KN} 42. h4 {[%emt 0:00:01]} Kf7 {[%emt 0:00:11]} 43. Na7 {[%emt 0:00:14]} Ke6 {[%emt 0:00:05]} 44. Nb5 {[%emt 0:00:19]} Nd3+ {[%emt 0:00:02]} 45. Ke3 {[%emt 0:00:01]} Nc1 {[%emt 0:00:00]} 46. Kd2 {[%emt 0:00:08]} Na2 {[%emt 0:00:01]} (46... Nxb3+ $2 {perishes.} 47. Kc2 Nc5 (47... Na1+ $2 48. Kb2 $18) 48. dxc5 bxc5 49. Nc3 $18) 47. Kc2 {[%emt 0:00:01]} Nb4+ {[%emt 0:00:01]} 48. Kd2 {[%emt 0:00:00]} Nc6 {[%emt 0:00:00]} 49. Ke3 {[%emt 0:00:01]} Kd7 {[%emt 0:00:01]} 50. Nc3 {[%emt 0:00:01]} Kd6 {[%emt 0:00:00][%cal Of5f4]} 51. Ne2 {[%emt 0:00:01]} Ke6 $2 {[%emt 0:00:00][%mdl 8192]} (51... Kd7 $11 {and Black stays safe.}) 52. Nf4+ $18 {[%emt 0:00:00]} Kf7 {[%emt 0:00:02]} 53. Nxd5 {[%emt 0:00:01] Weighted Error Value: White=0.06 (flawless) /Black=0.21 (precise)   Loses game:     	---       	Black=1      Inaccurate:     	White=1     	Black=4      OK:         	White=15    	Black=15     Best:        	White=3     	Black=1      Strong:       	White=1     	---} 1-0

[Event "CCT Chessable Masters Playin Match 2025"]
[Site "Online"]
[Date "2025.02.17"]
[Round "1.1"]
[White "Lu, Shanglei"]
[Black "Giri, Anish"]
[Result "1/2-1/2"]
[Annotator "TA"]
[ECO "C54"]
[WhiteElo "2618"]
[BlackElo "2728"]
[PlyCount "73"]
[EventDate "2025.02.13"]
[EventType "k.o."]
[EventCountry "NET"]
[SourceTitle "playchess.com"]
[Source "ChessBase"]
[SourceQuality "1"]
[TimeControl "600"]

{[%evp 9,73,13,18,9,11,8,9,11,4,0,0,13,20,9,0,-10,2,0,-3,-4,0,0,0,0,-2,-25,0,0,0,0,0,0,0,0,11,-19,-14,-20,-16,-14,0,0,21,-10,-5,-14,-14,-10,-10,-11,-8,-13,-15,-14,-4,-4,-4,-6,-3,-6,0,-7,0,-5,0,-10]} 1. e4 {[%emt 0:00:02]} e5 {[%emt 0:00:01]} 2. Nf3 {[%emt 0:00:02]} Nc6 {[%emt 0:00:01]} 3. Bc4 {[%emt 0:00:01]} Bc5 {[%emt 0:00:01]} 4. c3 {[%emt 0:00:02]} Nf6 {[%emt 0:00:01]} 5. d3 {[%emt 0:00:01]} a5 {[%emt 0:00:01]} 6. O-O {[%emt 0:00:04] C54: Giuoco Piano: 4 c3 Nf6, main lines with 5 d4 and 5 d3.} d6 {[%emt 0:00:01]} 7. Nbd2 {[%emt 0:00:04][%cal Bb1d2,Bd2f1,Bf1h2,Bh2f3][%mdl 32]} O-O {[%emt 0:00:03]} 8. h3 {[%emt 0:00:03]} Be6 {[%emt 0:00:12]} 9. Bb5 {[%emt 0:00:06]} Ba7 $1 {[%emt 0:00:02][%mdl 4] now scores much better than the old 9...h6.} 10. Re1 {[%emt 0:00:04]} Ne7 {[%emt 0:00:01]} 11. d4 {[%emt 0:00:02]} Ng6 {[%emt 0:00:03]} 12. Nf1 {[%emt 0:00:26]} exd4 {[%emt 0:00:01]} 13. cxd4 {[%emt 0:00:02]} d5 {[%emt 0:00:01]} 14. e5 {[%emt 0:00:03]} Ne4 {[%emt 0:00:01]} 15. Bd3 {[%emt 0:00:33][%cal Of1d2]} f6 {[%emt 0:00:38]} 16. exf6 {[%emt 0:00:39]} Qxf6 {[%emt 0:00:06] ...Nh4 poses a challenge} 17. N1h2 {[%emt 0:00:09]} (17. Be3 $5) 17... Nh4 $146 {[%emt 0:01:16]} (17... c6 18. Qc2 Bf5 19. Be3 Rae8 20. Rad1 Bb8 21. Qb3 b5 22. Nd2 a4 23. Nxe4 Bxe4 {0-1 Myagmarsuren,E (2139)-Prraneeth,V (2437) Fagernes op-A 2023 (1)}) 18. Bxe4 {[%emt 0:00:19] The position is equal.} dxe4 {[%emt 0:00:02]} 19. Rxe4 {[%emt 0:00:02]} Nxf3+ {[%emt 0:00:10]} ({Much worse is} 19... Nxg2 $6 20. Kxg2 Qg6+ 21. Rg4 Bxg4 22. hxg4 $16 (22. Nxg4 Rae8 $14)) 20. Nxf3 {[%emt 0:00:13]} Bd5 {[%emt 0:01:26]} 21. Rf4 {[%emt 0:00:01]} Qd6 {[%emt 0:00:41]} 22. Rg4 {[%emt 0:01:24]} Bxf3 {[%emt 0:00:19]} 23. gxf3 {[%emt 0:00:00]} Rad8 {[%emt 0:00:31][%cal Ra7d4]} 24. Be3 {[%emt 0:00:05]} Qd5 {[%emt 0:00:07]} 25. Rg5 {[%emt 0:00:24]} Qxf3 {[%emt 0:00:27]} 26. Qxf3 {[%emt 0:00:37] Successful Defense White} (26. Rxa5 {feels hotter.} Qxh3 27. Rxa7 Rf6 28. Qb3+) 26... Rxf3 {[%emt 0:00:01]} 27. Rxa5 {[%emt 0:00:04]} Bxd4 {[%emt 0:00:13]} 28. Bxd4 {[%emt 0:01:04]} Rxd4 $11 {[%emt 0:00:01][%mdl 4096] Endgame KRR-KRR} 29. Rc1 {[%emt 0:00:03]} c6 {[%emt 0:00:12]} (29... Rxh3 30. Ra8+ Kf7 31. Rxc7+ Kg6 32. Rg8 $18) 30. Kg2 {[%emt 0:00:08]} Rf6 {[%emt 0:00:06]} 31. Rc2 {[%emt 0:00:03] Prevents Rd2} Rb4 {[%emt 0:00:09]} 32. Re5 {[%emt 0:00:09]} h6 {[%emt 0:00:07]} 33. b3 {[%emt 0:00:02]} Rg6+ {[%emt 0:00:06]} 34. Kh2 {[%emt 0:00:08]} Rf6 {[%emt 0:00:01]} 35. Kg2 {[%emt 0:00:01]} Rg6+ {[%emt 0:00:01]} 36. Kh2 {[%emt 0:00:00]} Rf6 {[%emt 0:00:00]} 37. Kg2 {[%emt 0:00:01] An interesting draw.   Weighted Error Value: White=0.04 (flawless) /Black=0.04 (flawless)   Inaccurate:     	White=2     	---        OK:         	White=12    	Black=15} 1/2-1/2

[Event "CCT Chessable Masters Playin Match 2025"]
[Site "Online"]
[Date "2025.02.17"]
[Round "1.1"]
[White "Lazavik, Denis"]
[Black "Artemiev, Vladislav"]
[Result "0-1"]
[Annotator "RC"]
[ECO "E24"]
[WhiteElo "2572"]
[BlackElo "2691"]
[PlyCount "186"]
[EventDate "2025.02.13"]
[EventType "k.o."]
[EventCountry "NET"]
[SourceTitle "playchess.com"]
[Source "ChessBase"]
[SourceQuality "1"]
[TimeControl "600"]

1. d4 {[%emt 0:00:00]} Nf6 {[%emt 0:00:02]} 2. c4 {[%emt 0:00:01]} e6 {[%emt 0:00:01]} 3. Nc3 {[%emt 0:00:01]} Bb4 {[%emt 0:00:03]} 4. a3 {[%emt 0:00:00]} Bxc3+ {[%emt 0:00:01]} 5. bxc3 {[%emt 0:00:00]} Nc6 {[%emt 0:00:42]} 6. f3 {[%emt 0:00:04]} b6 {[%emt 0:00:03]} 7. e4 {[%emt 0:00:01]} h6 {[%emt 0:00:10]} 8. Bd3 {[%emt 0:00:07]} Ba6 {[%emt 0:00:10]} 9. f4 {[%emt 0:00:15]} Na5 {[%emt 0:00:07]} 10. Qe2 {[%emt 0:00:08]} c5 {[%emt 0:01:17]} 11. Nf3 {[%emt 0:00:34]} cxd4 {[%emt 0:00:18]} 12. cxd4 {[%emt 0:00:02]} Rc8 {[%emt 0:00:02]} 13. Nd2 {[%emt 0:00:24]} d5 {[%emt 0:00:11]} 14. exd5 {[%emt 0:01:03]} O-O {[%emt 0:00:19]} 15. d6 {[%emt 0:03:19]} Qxd6 {[%emt 0:00:05]} 16. Bb2 {[%emt 0:00:01]} Qxf4 {[%emt 0:00:19]} 17. Rf1 {[%emt 0:00:01]} Qh4+ {[%emt 0:00:33]} 18. g3 {[%emt 0:00:07]} Qg4 {[%emt 0:00:25]} 19. Rc1 {[%emt 0:00:01]} Qxe2+ {[%emt 0:00:10]} 20. Kxe2 {[%emt 0:00:00]} Rfd8 {[%emt 0:00:05]} 21. Rc2 {[%emt 0:00:20]} Nc6 {[%emt 0:00:29]} 22. Nf3 {[%emt 0:00:03]} Re8 {[%emt 0:00:24]} 23. Rfc1 {[%emt 0:00:21]} Rcd8 {[%emt 0:00:11]} 24. Rd2 {[%emt 0:00:18]} e5 {[%emt 0:00:32]} 25. dxe5 {[%emt 0:00:01]} Ng4 {[%emt 0:00:07]} 26. Be4 {[%emt 0:01:09]} Rxd2+ {[%emt 0:00:03]} 27. Nxd2 {[%emt 0:00:00]} Ncxe5 {[%emt 0:00:05]} 28. h3 {[%emt 0:00:28]} Nf6 {[%emt 0:00:56]} 29. Bxe5 {[%emt 0:00:01]} Rxe5 {[%emt 0:00:00]} 30. Kd3 {[%emt 0:00:01]} Rg5 {[%emt 0:00:05]} 31. g4 {[%emt 0:00:02]} h5 {[%emt 0:00:01]} 32. Bf3 {[%emt 0:00:11]} hxg4 {[%emt 0:00:01]} 33. hxg4 {[%emt 0:00:00]} Nxg4 {[%emt 0:00:04]} 34. Ne4 {[%emt 0:00:05]} Ne5+ {[%emt 0:00:03]} 35. Ke3 {[%emt 0:00:01]} Nxf3 {[%emt 0:00:22]} 36. Nxg5 {[%emt 0:00:01]} Nxg5 {[%emt 0:00:00]} 37. c5 {[%emt 0:00:00]} bxc5 {[%emt 0:00:04]} 38. Rxc5 {[%emt 0:00:00]} Ne6 {[%emt 0:00:00]} 39. Ra5 {[%emt 0:00:01]} Nc7 {[%emt 0:00:01]} 40. Rc5 {[%emt 0:00:01]} Ne6 {[%emt 0:00:12]} 41. Ra5 {[%emt 0:00:00]} Bc4 {[%emt 0:00:13]} 42. Rxa7 {[%emt 0:00:01]} g5 {[%emt 0:00:01]} 43. Ra4 {[%emt 0:00:01]} Bd5 {[%emt 0:00:02]} 44. Ra5 {[%emt 0:00:01]} Bh1 {[%emt 0:00:04]} 45. a4 {[%emt 0:00:01]} Kg7 {[%emt 0:00:00]} 46. Rb5 {[%emt 0:00:04]} Bc6 {[%emt 0:00:03]} 47. Rb4 {[%emt 0:00:02]} f5 {[%emt 0:00:01]} 48. a5 {[%emt 0:00:04]} f4+ {[%emt 0:00:01]} 49. Kd2 {[%emt 0:00:01]} g4 {[%emt 0:00:01]} 50. Rb6 {[%emt 0:00:01]} Bd5 {[%emt 0:00:03]} 51. Rd6 {[%emt 0:00:01]} g3 {[%emt 0:00:03]} 52. Ke1 {[%emt 0:00:03]} Bc4 {[%emt 0:00:05]} 53. Rc6 {[%emt 0:00:02]} Bd5 {[%emt 0:00:14]} 54. Rd6 {[%emt 0:00:04]} Ba2 {[%emt 0:00:03]} 55. Rd3 {[%emt 0:00:07]} Ng5 {[%emt 0:00:06]} 56. a6 {[%emt 0:00:06]} f3 {[%emt 0:00:00]} 57. Rd2 {[%emt 0:00:01]} f2+ {[%emt 0:00:04]} 58. Rxf2 {[%emt 0:00:01]} gxf2+ {[%emt 0:00:00]} 59. Kxf2 {[%emt 0:00:00]} Bd5 {[%emt 0:00:00]} 60. a7 {[%emt 0:00:00]} Ba8 {[%emt 0:00:01]} 61. Ke3 {[%emt 0:00:00]} Ne6 {[%emt 0:00:00]} 62. Kd3 {[%emt 0:00:01]} Nd8 {[%emt 0:00:00]} 63. Kc3 {[%emt 0:00:00]} Nc6 {[%emt 0:00:00]} 64. Kc4 {[%emt 0:00:00]} Nxa7 {[%emt 0:00:00]} 65. Kc5 {[%emt 0:00:00]} Nc8 {[%emt 0:00:00]} 66. Kb5 {[%emt 0:00:01]} Kf6 {[%emt 0:00:00]} 67. Kc5 {[%emt 0:00:00]} Ke7 {[%emt 0:00:00]} 68. Kd4 {[%emt 0:00:00]} Kd7 {[%emt 0:00:00]} 69. Ke3 {[%emt 0:00:01]} Kc7 {[%emt 0:00:00]} 70. Kf4 {[%emt 0:00:00]} Kd6 {[%emt 0:00:01]} 71. Kg3 {[%emt 0:00:00]} Ke6 {[%emt 0:00:00]} 72. Kh4 {[%emt 0:00:00]} Ke5 {[%emt 0:00:00]} 73. Kg3 {[%emt 0:00:00]} Nd6 {[%emt 0:00:00]} 74. Kf2 {[%emt 0:00:00]} Nf5 {[%emt 0:00:00]} 75. Ke1 {[%emt 0:00:00]} Ke4 {[%emt 0:00:01]} 76. Kd2 {[%emt 0:00:00]} Bd5 {[%emt 0:00:00]} 77. Kc1 {[%emt 0:00:00]} Ke5 {[%emt 0:00:00]} 78. Kb1 {[%emt 0:00:00]} Kd6 {[%emt 0:00:00]} 79. Ka1 {[%emt 0:00:01]} Kc5 {[%emt 0:00:00]} 80. Kb1 {[%emt 0:00:00]} Kc4 {[%emt 0:00:01]} 81. Kc1 {[%emt 0:00:00]} Kc3 {[%emt 0:00:00]} 82. Kb1 {[%emt 0:00:00]} Nd4 {[%emt 0:00:00]} 83. Ka1 {[%emt 0:00:00]} Nc2+ {[%emt 0:00:00]} 84. Kb1 {[%emt 0:00:00]} Nb4 {[%emt 0:00:01]} 85. Kc1 {[%emt 0:00:00]} Ba2 {[%emt 0:00:00]} 86. Kd1 {[%emt 0:00:01]} Nd3 {[%emt 0:00:00]} 87. Ke2 {[%emt 0:00:00]} Nf4+ {[%emt 0:00:00]} 88. Kf1 {[%emt 0:00:01]} Kd4 {[%emt 0:00:00]} 89. Kg1 {[%emt 0:00:00]} Nd5 {[%emt 0:00:01]} 90. Kh2 {[%emt 0:00:00]} Ke4 {[%emt 0:00:00]} 91. Kg3 {[%emt 0:00:00]} Ne3 {[%emt 0:00:00]} 92. Kh4 {[%emt 0:00:00]} Nf5+ {[%emt 0:00:00]} 93. Kg5 Ke5 {[%emt 0:00:01]} 0-1

[Event "CCT Chessable Masters Playin Match 2025"]
[Site "Online"]
[Date "2025.02.17"]
[Round "1.2"]
[White "Aravindh, Chithambaram VR."]
[Black "Duda, Jan-Krzysztof"]
[Result "0-1"]
[Annotator "TA"]
[ECO "D78"]
[WhiteElo "2729"]
[BlackElo "2739"]
[PlyCount "98"]
[EventDate "2025.02.13"]
[EventType "k.o."]
[EventCountry "NET"]
[SourceTitle "playchess.com"]
[Source "ChessBase"]
[SourceQuality "1"]
[TimeControl "600"]

{[%evp 15,98,-31,-33,-18,-8,-39,40,52,41,-1,2,6,0,3,3,-52,-53,-79,-36,-38,-6,-10,199,163,381,359,372,269,314,283,271,347,288,286,265,224,205,192,201,207,829,851,848,848,848,848,847,828,721,715,831,761,750,750,713,735,967,951,1056,1043,1035,990,957,883,893,886,962,957,901,877,834,810,967,953,970,963,1137,773,736,682,661,518,498,-29969,-29970]} 1. d4 {[%emt 0:00:01]} Nf6 {[%emt 0:00:02]} 2. Nf3 {[%emt 0:00:01]} g6 {[%emt 0:00:01]} 3. g3 {[%emt 0:00:02]} Bg7 {[%emt 0:00:01]} 4. Bg2 {[%emt 0:00:00]} d5 {[%emt 0:00:01]} 5. O-O {[%emt 0:00:01]} O-O {[%emt 0:00:00]} 6. c4 {[%emt 0:00:00]} c6 {[%emt 0:00:00]} 7. Nc3 {[%emt 0:00:02][%cal Bb1c3,Bc3a4,Ba4c5][%mdl 32]} dxc4 {[%emt 0:00:03]} 8. e4 {[%emt 0:00:01] is now more promising than 8.Ne5.} b5 {[%emt 0:00:02]} 9. Qe2 {[%emt 0:00:02] D78: Fianchetto Grünfeld: 6 0-0 c6.} a5 {[%emt 0:00:06]} 10. Rd1 {[%emt 0:00:09]} b4 $5 {[%emt 0:00:08][%mdl 4] Leaves trodden paths.} (10... Ba6 $15) 11. Na4 $14 {[%emt 0:00:11][%cal Of3e5] White is slightly better.} Ba6 {[%emt 0:00:05]} 12. Nc5 {[%emt 0:00:35] White sacrificed a pawn} (12. Qc2 {keeps more tension.} b3 13. axb3 cxb3 14. Qxb3 Nxe4 15. Ne5) 12... Bb5 {[%emt 0:00:05]} 13. a4 $146 {[%emt 0:00:01]} (13. e5 c3 14. Qc2 Nd5 15. e6 f5 16. h4 Na6 17. Nd7 a4 18. bxc3 Nxc3 19. Re1 {1-0 Galperin,P (2538)-Mazurek,R (2207) Oberliga Ost-B 2223 2022 (6.3)}) 13... bxa3 {[%emt 0:00:01]} 14. bxa3 {[%emt 0:00:09] a4 is in the air} a4 {[%emt 0:00:05]} 15. e5 {[%emt 0:02:06]} (15. Rb1 $11) 15... Nd5 $15 {[%emt 0:00:06] And now ...Nc3 would win.} 16. Qe4 {[%emt 0:00:01]} Nc3 {[%emt 0:01:24][%csl LRd1,LRe4]} 17. Qh4 {[%emt 0:00:03][%cal Oc1h6]} Nxd1 {[%emt 0:00:00]} (17... Na6 $5 18. Bg5 Re8 $15 (18... Nxc5 19. Bxe7 Qd7 20. Bxc5 $15)) 18. Bh6 $1 {[%emt 0:00:03]} Nc3 $2 {[%emt 0:00:04]} (18... Qe8 $11 {and Black is okay.}) 19. Bxg7 $18 {[%emt 0:00:57]} Kxg7 {[%emt 0:00:22]} (19... h5 20. Bxf8 Qxf8) 20. Ng5 {[%emt 0:00:02][%csl Gg5][%cal Rh4h7]} h5 {[%emt 0:00:31] [#]} (20... h6 21. Nge6+ fxe6 22. Nxe6+ Kf7 23. Nxd8+ Rxd8 24. Qxh6 $18) 21. Nge6+ $1 {[%emt 0:00:04][%mdl 512]} fxe6 {[%emt 0:00:00]} 22. Nxe6+ {[%emt 0:00:00]} Kf7 {[%emt 0:01:01][%cal Bg7f7,Bf7e8,Be8d8,Bd8c7,Bc7c8,Bc8b7][%mdl 32]} 23. Nxd8+ {[%emt 0:00:03]} Rxd8 {[%emt 0:00:00] [#]} 24. e6+ $1 {[%emt 0:00:16][%mdl 512]} Ke8 {[%emt 0:00:29]} 25. Re1 {[%emt 0:00:04] and Qg5 would now be decisive Prevents Ne2+} Nd5 {[%emt 0:01:27]} 26. Qg5 {[%emt 0:01:01]} ({Worse is} 26. Be4 Rd6 $11) 26... Rd6 {[%emt 0:00:02]} 27. Qh6 $40 {[%emt 0:00:32][%cal Rh6h8][%mdl 128] Black is in trouble.} (27. Qxg6+ Kd8 $16) 27... Nd7 $2 {[%emt 0:00:24]} (27... Kd8 28. Qf8+ (28. Qxg6 Kc7 $14) 28... Kc7) 28. Qxg6+ {[%emt 0:00:13]} (28. exd7+ Kxd7 29. Re5 c3 $18) 28... Kd8 {[%emt 0:00:08]} 29. Qg8+ {[%emt 0:00:01]} ({Not} 29. Qxh5 N7f6 30. Qh8+ Ne8 $16) 29... Kc7 {[%emt 0:00:05]} 30. Qxa8 {[%emt 0:00:00]} N7f6 {[%emt 0:00:09]} 31. Qa7+ {[%emt 0:00:04]} Kc8 {[%emt 0:00:01]} 32. Bf1 {[%emt 0:00:16]} c3 {[%emt 0:00:26]} 33. Bxb5 {[%emt 0:00:05]} cxb5 {[%emt 0:00:00]} 34. Qc5+ {[%emt 0:00:01]} Kb7 {[%emt 0:00:00]} 35. Qxb5+ {[%emt 0:00:02]} Rb6 {[%emt 0:00:01]} 36. Qxa4 {[%emt 0:00:03]} Rb2 {[%emt 0:00:02]} 37. Rc1 {[%emt 0:00:04]} Rb6 {[%emt 0:00:44]} 38. Qc4 {[%emt 0:00:12]} h4 {[%emt 0:00:10]} 39. Rxc3 {[%emt 0:00:13]} Nxc3 {[%emt 0:00:00]} 40. Qxc3 {[%emt 0:00:00][%mdl 4096] Endgame KQ-KRN} h3 {[%emt 0:00:01]} 41. Kf1 {[%emt 0:00:04]} Rxe6 {[%emt 0:00:03]} 42. f3 {[%emt 0:00:06]} Rb6 {[%emt 0:00:09]} 43. Qc5 {[%emt 0:00:07]} Rb1+ {[%emt 0:00:15]} 44. Kf2 {[%emt 0:00:01]} Rb2+ {[%emt 0:00:01]} 45. Ke3 {[%emt 0:00:00]} Ne8 {[%emt 0:00:01]} 46. Qd5+ {[%emt 0:00:08]} Kc7 {[%emt 0:00:03]} 47. Qe5+ {[%emt 0:00:06]} Kd8 {[%emt 0:00:02]} 48. Kf4 {[%emt 0:00:15]} Rxh2 {[%emt 0:00:02]} 49. Ke4 $4 {[%emt 0:00:39][%mdl 8192]} (49. Qb8+ $18 Kd7 50. Kg4 (50. Qb5+ Kd8 $18)) 49... Re2+ {[%emt 0:00:02] What a bad dream for White.   Weighted Error Value: White=0.22 (precise) /Black=0.61  Loses game:     	---       	Black=1      Mistake:       	White=1     	Black=3      Inaccurate:     	White=2     	Black=2      OK:         	White=7     	Black=5      Best:        	White=2     	Black=8      Strong:       	White=1     	---} 0-1